{"text_format":"3","workbook":"xlsx","n_sheets":2,"sheets":["Sledilnik odgovorov","Povzetek odgovorov"],"not_rendered":{"charts":2,"defined_names":22},"read":"whole","date_system":"1900"}

{"sheet":"Sledilnik odgovorov","index":0,"n_rows":15,"n_cols":15,"rows_kept":15,"merged":[[0,3,0,4],[0,5,0,7]]}
[{"$nulls":5},"POVZETEK ODGOVOROV"]
[null,"DATUM POROKE",null,"Sledilnik povabil na poroko"]
[null,{"$f":"TODAY()+283","v":"2023-05-14"},null,"IME GOSTA","POSLANO?","ODGOVORITE, PROSIM","ZABAVA","GOST","SORODSTVENO RAZMERJE","NASLOV","MESTO","DRŽAVA","POŠTNA ŠTEVILKA","TELEFON","E-POŠTNI NASLOV OSEBE ZA STIK"]
[null,"ŠTEVILO PREOSTALIH DNI",null,"Ime 1","Da","Da",1,"Bodoči mladoporočenec 1","Brat","Naslov","Mesto","Država","POŠTNA ŠTEVILKA","Telefon","nekdo@example.com"]
[null,{"$f":"Št.PreostalihDni","v":283},null,"Ime 2","Da","Ne",3,"Bodoči mladoporočenec 1","Prijatelj","Naslov","Mesto","Država","POŠTNA ŠTEVILKA","Telefon","nekdo@example.com"]
[null,"SE BODO UDELEŽILI",null,"Ime 3","Da","Da",1,"Drugo","Prijatelj","Naslov","Mesto","Država","POŠTNA ŠTEVILKA","Telefon","nekdo@example.com"]
[null,{"$f":"SkupajUdeleženih","v":12},null,"Ime 4","Da","Ne",2,"Bodoči mladoporočenec 2","Prijatelj","Naslov","Mesto","Država","POŠTNA ŠTEVILKA","Telefon","nekdo@example.com"]
[null,"SE NE BODO UDELEŽILI",null,"Ime 5","Da","Da",2,"Bodoči mladoporočenec 2","Prijatelj","Naslov","Mesto","Država","POŠTNA ŠTEVILKA","Telefon","nekdo@example.com"]
[null,{"$f":"SkupajNeudeleženih","v":6},null,"Ime 6","Da","Mogoče",null,"Drugo","Prijatelj","Naslov","Mesto","Država","POŠTNA ŠTEVILKA","Telefon","nekdo@example.com"]
[null,"NISO JAVILI",null,"Ime 7","Da","Da",2,"Bodoči mladoporočenec 2","Prijatelj","Naslov","Mesto","Država","POŠTNA ŠTEVILKA","Telefon","nekdo@example.com"]
[null,{"$f":"NiOdgovora","v":1},null,"Ime 8","Da","Ne",1,"Drugo","Prijatelj","Naslov","Mesto","Država","POŠTNA ŠTEVILKA","Telefon","nekdo@example.com"]
[{"$nulls":3},"Ime 9","Da","Da",4,"Bodoči mladoporočenec 1","Prijatelj","Naslov","Mesto","Država","POŠTNA ŠTEVILKA","Telefon","nekdo@example.com"]
[{"$nulls":3},"Ime 10","Da","Da",2,"Bodoči mladoporočenec 1","Prijatelj","Naslov","Mesto","Država","POŠTNA ŠTEVILKA","Telefon","nekdo@example.com"]
[{"$nulls":3},"Ime 11","Da",null,null,"Bodoči mladoporočenec 2","Brat","Naslov","Mesto","Država","POŠTNA ŠTEVILKA","Telefon","nekdo@example.com"]
[{"$nulls":3},"Total",{"$f":"COUNTIF('Sledilnik odgovorov'!$E$4:$E$14,\"Da\")","v":11},{"$f":"COUNTA('Sledilnik odgovorov'!$F$4:$F$14)","v":10},{"$f":"SUBTOTAL(109,tblVabila[ZABAVA])","v":18}]

{"sheet":"Povzetek odgovorov","index":1,"n_rows":11,"n_cols":15,"rows_kept":11,"merged":[[0,3,0,4],[0,5,0,8],[2,3,6,3],[2,4,6,4],[7,3,11,3],[7,4,11,4]]}
[{"$nulls":3},"SLEDILNIK ODGOVOROV"]
[null,"DATUM POROKE",null,"povzetek odgovorov",{"$nulls":10},"opombe"]
[null,{"$f":"DatumPoroke","v":"2023-05-14"},null,"DA","V tej celici je gručni palični grafikon, kjer so prikazane vrste gostov za odgovore »Da«."]
[null,"ŠTEVILO PREOSTALIH DNI",{"$nulls":3},"DRUGO",{"$f":"IFERROR(SUMIFS(tblVabila[ZABAVA],tblVabila[GOST],\"=Drugo\",tblVabila[ODGOVORITE, PROSIM],\"Da\"),0)","v":1},{"$f":"tblVabila[[#Totals],[POSLANO?]]","v":11}]
[null,{"$f":"Št.PreostalihDni","v":283},{"$nulls":3},"BODOČI MLADOPOROČENEC 2",{"$f":"IFERROR(SUMIFS(tblVabila[ZABAVA],tblVabila[GOST],\"=BODOČI MLADOPOROČENEC 2\",tblVabila[ODGOVORITE, PROSIM],\"Da\"),0)","v":4},{"$f":"tblVabila[[#Totals],[POSLANO?]]","v":11}]
[null,"SE BODO UDELEŽILI",{"$nulls":3},"BODOČI MLADOPOROČENEC 1",{"$f":"IFERROR(SUMIFS(tblVabila[ZABAVA],tblVabila[GOST],\"=BODOČI MLADOPOROČENEC 1\",tblVabila[ODGOVORITE, PROSIM],\"Da\"),0)","v":7},{"$f":"tblVabila[[#Totals],[POSLANO?]]","v":11}]
[null,{"$f":"SkupajUdeleženih","v":12}]
[null,"SE NE BODO UDELEŽILI",null,"NE","V tej celici je gručni palični grafikon, kjer so prikazane vrste gostov za odgovore »Ne«."]
[null,{"$f":"SkupajNeudeleženih","v":6},{"$nulls":3},"DRUGO",{"$f":"IFERROR(SUMIFS(tblVabila[ZABAVA],tblVabila[GOST],\"=Drugo\",tblVabila[ODGOVORITE, PROSIM],\"Ne\"),0)","v":1},{"$f":"tblVabila[[#Totals],[POSLANO?]]","v":11}]
[null,"NISO JAVILI",{"$nulls":3},"BODOČI MLADOPOROČENEC 2",{"$f":"IFERROR(SUMIFS(tblVabila[ZABAVA],tblVabila[GOST],\"=BODOČI MLADOPOROČENEC 2\",tblVabila[ODGOVORITE, PROSIM],\"Ne\"),0)","v":2},{"$f":"tblVabila[[#Totals],[POSLANO?]]","v":11}]
[null,{"$f":"NiOdgovora","v":1},{"$nulls":3},"BODOČI MLADOPOROČENEC 1",{"$f":"IFERROR(SUMIFS(tblVabila[ZABAVA],tblVabila[GOST],\"=BODOČI MLADOPOROČENEC 1\",tblVabila[ODGOVORITE, PROSIM],\"Ne\"),0)","v":3},{"$f":"tblVabila[[#Totals],[POSLANO?]]","v":11}]